[Event "Titled Tuesday Blitz April 18 Late 2023"]
[White "Kujawski, Adam"]
[Black "Manfroi, Alexander Giannini"]
[WhiteFideId "1100920"]
[BlackFideId "22739335"]
[WhiteElo "2054"]
[BlackElo "1618"]
[Result "0-1"]
[Round "10"]
[TimeControl "180+2"]
[Date "2023.04.18"]
[WhiteClock "0:00:06"]
[BlackClock "0:00:07"]

1. e4 {[%clk 0:02:57]}  c5 {[%clk 0:03:00]} 2. Nf3 {[%clk 0:02:56]}  Nc6 {[%clk 0:03:01]} 3. Nc3 {[%clk 0:02:56]}  d6 {[%clk 0:02:54]} 4. d4 {[%clk 0:02:55]}  cxd4 {[%clk 0:02:54]} 5. Nxd4 {[%clk 0:02:56]}  e5 {[%clk 0:02:50]} 6. Nxc6 {[%clk 0:02:55]}  bxc6 {[%clk 0:02:51]} 7. Bc4 {[%clk 0:02:55]}  Be7 {[%clk 0:02:46]} 8. f4 {[%clk 0:02:54]}  Be6 {[%clk 0:02:37]} 9. Bxe6 {[%clk 0:02:42]}  fxe6 {[%clk 0:02:38]} 10. fxe5 {[%clk 0:02:41]}  dxe5 {[%clk 0:02:39]} 11. Qh5+ {[%clk 0:02:26]}  Kd7 {[%clk 0:02:19]} 12. Be3 {[%clk 0:01:58]}  Qa5 {[%clk 0:02:00]} 13. O-O-O+ {[%clk 0:01:49]}  Kc7 {[%clk 0:01:59]} 14. Qf7 {[%clk 0:01:39]}  Rf8 {[%clk 0:01:18]} 15. Qxe6 {[%clk 0:01:35]}  Rd8 {[%clk 0:00:39]} 16. Rxd8 {[%clk 0:01:14]}  Bxd8 {[%clk 0:00:36]} 17. Rd1 {[%clk 0:01:12]}  Nf6 {[%clk 0:00:35]} 18. Qf7+ {[%clk 0:01:01]}  Kb8 {[%clk 0:00:32]} 19. Qxg7 {[%clk 0:00:20]}  Rg8 {[%clk 0:00:32]} 20. Qf7 {[%clk 0:00:20]}  Qc7 {[%clk 0:00:25]} 21. Qxc7+ {[%clk 0:00:15]}  Kxc7 {[%clk 0:00:26]} 22. g3 {[%clk 0:00:15]}  a6 {[%clk 0:00:24]} 23. Bc5 {[%clk 0:00:14]}  Kb7 {[%clk 0:00:20]} 24. Bd6 {[%clk 0:00:13]}  Bc7 {[%clk 0:00:20]} 25. Bxc7 {[%clk 0:00:11]}  Kxc7 {[%clk 0:00:20]} 26. Rf1 {[%clk 0:00:11]}  Ng4 {[%clk 0:00:20]} 27. Rf7+ {[%clk 0:00:10]}  Kd6 {[%clk 0:00:21]} 28. Rxh7 {[%clk 0:00:11]}  Kc5 {[%clk 0:00:21]} 29. a3 {[%clk 0:00:11]}  Kd4 {[%clk 0:00:22]} 30. Kb1 {[%clk 0:00:09]}  Nf2 {[%clk 0:00:22]} 31. Rd7+ {[%clk 0:00:09]}  Ke3 {[%clk 0:00:22]} 32. Ka2 {[%clk 0:00:08]}  Nxe4 {[%clk 0:00:19]} 33. Rd3+ {[%clk 0:00:07]}  Kf2 {[%clk 0:00:18]} 34. Nxe4+ {[%clk 0:00:08]}  Ke2 {[%clk 0:00:19]} 35. h4 {[%clk 0:00:08]}  Rg4 {[%clk 0:00:19]} 36. Nf6 {[%clk 0:00:07]}  Rg6 {[%clk 0:00:18]} 37. Nd7 {[%clk 0:00:06]}  e4 {[%clk 0:00:16]} 38. Rc3 {[%clk 0:00:06]}  e3 {[%clk 0:00:16]} 39. Ne5 {[%clk 0:00:06]}  Rxg3 {[%clk 0:00:14]} 40. Nxc6 {[%clk 0:00:06]}  Kd2 {[%clk 0:00:14]} 41. Nd4 {[%clk 0:00:05]}  Rh3 {[%clk 0:00:10]} 42. b4 {[%clk 0:00:02]}  Kxc3 {[%clk 0:00:10]} 43. Ne2+ {[%clk 0:00:02]}  Kd2 {[%clk 0:00:10]} 44. Nf4 {[%clk 0:00:03]}  Rxh4 {[%clk 0:00:10]} 45. Ng2 {[%clk 0:00:01]}  Rh2 {[%clk 0:00:10]} 46. Nxe3 {[%clk 0:00:01]}  Kxe3 {[%clk 0:00:09]} 47. Kb3 {[%clk 0:00:02]}  Kd4 {[%clk 0:00:08]} 48. a4 {[%clk 0:00:03]}  Rh3+ {[%clk 0:00:08]} 49. Kb2 {[%clk 0:00:03]}  Kc4 {[%clk 0:00:08]} 50. c3 {[%clk 0:00:04]}  Rh2+ {[%clk 0:00:08]} 51. Ka3 {[%clk 0:00:05]}  Kxc3 {[%clk 0:00:08]} 52. b5 {[%clk 0:00:06]}  Rh1 {[%clk 0:00:07]} 53. a5 {[%clk 0:00:05]}  axb5 {[%clk 0:00:06]} 54. Ka2 {[%clk 0:00:04]}  b4 {[%clk 0:00:05]} 55. a6 {[%clk 0:00:05]}  Rh2+ {[%clk 0:00:05]} 56. Kb1 {[%clk 0:00:05]}  Rh6 {[%clk 0:00:06]} 57. a7 {[%clk 0:00:06]}  Ra6 {[%clk 0:00:06]} 58. a8=Q {[%clk 0:00:06]}  Rxa8 {[%clk 0:00:07]} 0-1


[Site "https://www.chess.com"]

[Event "Titled Tuesday Blitz April 18 Late 2023"]
[White "Vargas, Mauricio"]
[Black "Michalski, Olaf"]
[WhiteFideId "4404572"]
[BlackFideId "1106740"]
[WhiteElo "1998"]
[BlackElo "2173"]
[Result "1-0"]
[Round "10"]
[TimeControl "180+2"]
[Date "2023.04.18"]
[WhiteClock "0:00:51"]
[BlackClock "0:00:01"]

1. e4 {[%clk 0:02:59]}  c5 {[%clk 0:01:35]} 2. Nc3 {[%clk 0:02:57]}  a6 {[%clk 0:01:35]} 3. f4 {[%clk 0:02:56]}  g6 {[%clk 0:01:33]} 4. Nf3 {[%clk 0:02:57]}  Bg7 {[%clk 0:01:33]} 5. g3 {[%clk 0:02:48]}  b5 {[%clk 0:01:33]} 6. Bg2 {[%clk 0:02:48]}  Bb7 {[%clk 0:01:33]} 7. d3 {[%clk 0:02:47]}  e6 {[%clk 0:01:33]} 8. O-O {[%clk 0:02:47]}  Ne7 {[%clk 0:01:33]} 9. Qe1 {[%clk 0:02:46]}  Nbc6 {[%clk 0:01:32]} 10. Ne2 {[%clk 0:02:46]}  O-O {[%clk 0:01:21]} 11. c3 {[%clk 0:02:33]}  f5 {[%clk 0:01:15]} 12. Be3 {[%clk 0:02:25]}  d6 {[%clk 0:01:00]} 13. h3 {[%clk 0:02:21]}  b4 {[%clk 0:00:57]} 14. Rc1 {[%clk 0:02:12]}  bxc3 {[%clk 0:00:57]} 15. bxc3 {[%clk 0:02:12]}  Qa5 {[%clk 0:00:57]} 16. Rc2 {[%clk 0:02:09]}  c4 {[%clk 0:00:48]} 17. dxc4 {[%clk 0:01:51]}  fxe4 {[%clk 0:00:47]} 18. Ng5 {[%clk 0:01:49]}  Nf5 {[%clk 0:00:40]} 19. Qf2 {[%clk 0:01:36]}  Nxe3 {[%clk 0:00:21]} 20. Qxe3 {[%clk 0:01:34]}  Ne7 {[%clk 0:00:21]} 21. Nxe6 {[%clk 0:01:32]}  Nf5 {[%clk 0:00:21]} 22. Qf2 {[%clk 0:01:20]}  e3 {[%clk 0:00:20]} 23. Qe1 {[%clk 0:01:19]}  Bxg2 {[%clk 0:00:20]} 24. Kxg2 {[%clk 0:01:18]}  Rfe8 {[%clk 0:00:18]} 25. Nxg7 {[%clk 0:01:18]}  Kxg7 {[%clk 0:00:18]} 26. g4 {[%clk 0:01:16]}  Ne7 {[%clk 0:00:15]} 27. Nd4 {[%clk 0:01:11]}  Rac8 {[%clk 0:00:11]} 28. Qxe3 {[%clk 0:01:08]}  Nf5 {[%clk 0:00:10]} 29. Nxf5+ {[%clk 0:01:07]}  gxf5 {[%clk 0:00:09]} 30. Qd4+ {[%clk 0:01:06]}  Kg8 {[%clk 0:00:08]} 31. Qxd6 {[%clk 0:00:59]}  Rcd8 {[%clk 0:00:06]} 32. Qh6 {[%clk 0:00:53]}  Qc7 {[%clk 0:00:01]} 33. Qg5+ {[%clk 0:00:52]}  Kh8 {[%clk 0:00:01]} 34. Qxf5 {[%clk 0:00:51]} 1-0


[Site "https://www.chess.com"]

[Event "Titled Tuesday Blitz April 18 Late 2023"]
[White "Manon-og, Ramon Jr."]
[Black "Sanchez, Robert"]
[WhiteFideId "5200776"]
[BlackFideId "2034360"]
[WhiteElo "2342"]
[BlackElo "1955"]
[Result "1-0"]
[Round "10"]
[TimeControl "180+2"]
[Date "2023.04.18"]
[WhiteClock "0:02:01"]
[BlackClock "0:01:52"]

1. e4 {[%clk 0:03:00]}  d5 {[%clk 0:02:59]} 2. exd5 {[%clk 0:03:01]}  Qxd5 {[%clk 0:03:00]} 3. Nc3 {[%clk 0:03:00]}  Qe6+ {[%clk 0:03:00]} 4. Be2 {[%clk 0:03:00]}  Qg6 {[%clk 0:03:01]} 5. Bf3 {[%clk 0:02:59]}  Nc6 {[%clk 0:03:00]} 6. Nge2 {[%clk 0:02:58]}  e5 {[%clk 0:03:00]} 7. O-O {[%clk 0:02:57]}  Bd7 {[%clk 0:03:01]} 8. d3 {[%clk 0:02:56]}  O-O-O {[%clk 0:03:01]} 9. Ng3 {[%clk 0:02:57]}  f5 {[%clk 0:03:01]} 10. a4 {[%clk 0:02:49]}  Nf6 {[%clk 0:03:00]} 11. a5 {[%clk 0:02:49]}  a6 {[%clk 0:03:00]} 12. Nd5 {[%clk 0:02:47]}  h5 {[%clk 0:02:57]} 13. h4 {[%clk 0:02:43]}  Bc5 {[%clk 0:02:56]} 14. Kh2 {[%clk 0:02:20]}  Ng4+ {[%clk 0:02:47]} 15. Bxg4 {[%clk 0:02:16]}  hxg4 {[%clk 0:02:48]} 16. h5 {[%clk 0:02:10]}  f4 {[%clk 0:02:45]} 17. Nxf4 {[%clk 0:02:01]}  exf4 {[%clk 0:02:41]} 18. Bxf4 {[%clk 0:02:02]}  Qf6 {[%clk 0:02:33]} 19. Qd2 {[%clk 0:02:01]}  Qe6 {[%clk 0:01:52]} 1-0


[Site "https://www.chess.com"]

[Event "Titled Tuesday Blitz April 18 Late 2023"]
[White "Vachier-Lagrave, Maxime"]
[Black "Paravyan, David"]
[WhiteFideId "623539"]
[BlackFideId "4194985"]
[WhiteElo "2740"]
[BlackElo "2563"]
[Result "1/2-1/2"]
[Round "11"]
[TimeControl "180+2"]
[Date "2023.04.18"]
[WhiteClock "0:00:11"]
[BlackClock "0:00:05"]

1. e4 {[%clk 0:03:00]}  c5 {[%clk 0:03:00]} 2. Nf3 {[%clk 0:03:01]}  Nc6 {[%clk 0:03:00]} 3. Bb5 {[%clk 0:02:58]}  g6 {[%clk 0:03:00]} 4. O-O {[%clk 0:02:56]}  Bg7 {[%clk 0:03:00]} 5. Re1 {[%clk 0:02:54]}  e5 {[%clk 0:03:00]} 6. a3 {[%clk 0:02:52]}  Nge7 {[%clk 0:02:57]} 7. b4 {[%clk 0:02:48]}  d6 {[%clk 0:02:51]} 8. d3 {[%clk 0:02:44]}  O-O {[%clk 0:02:51]} 9. bxc5 {[%clk 0:02:45]}  dxc5 {[%clk 0:02:51]} 10. Be3 {[%clk 0:02:45]}  Nd4 {[%clk 0:02:50]} 11. Bc4 {[%clk 0:02:43]}  h6 {[%clk 0:02:26]} 12. Nbd2 {[%clk 0:02:41]}  Kh7 {[%clk 0:02:25]} 13. c3 {[%clk 0:02:41]}  Nxf3+ {[%clk 0:02:20]} 14. Nxf3 {[%clk 0:02:41]}  b6 {[%clk 0:02:17]} 15. a4 {[%clk 0:02:41]}  f5 {[%clk 0:02:13]} 16. exf5 {[%clk 0:02:35]}  Nxf5 {[%clk 0:02:12]} 17. Nd2 {[%clk 0:02:19]}  Bb7 {[%clk 0:02:02]} 18. Ne4 {[%clk 0:02:19]}  Nd6 {[%clk 0:02:02]} 19. Nxd6 {[%clk 0:02:11]}  Qxd6 {[%clk 0:02:03]} 20. Qg4 {[%clk 0:02:07]}  Bc6 {[%clk 0:01:55]} 21. Red1 {[%clk 0:01:50]}  Rad8 {[%clk 0:01:53]} 22. Bb5 {[%clk 0:01:46]}  Bb7 {[%clk 0:01:49]} 23. Bc4 {[%clk 0:01:45]}  Bc6 {[%clk 0:01:49]} 24. h3 {[%clk 0:01:43]}  Qf6 {[%clk 0:01:40]} 25. Bb5 {[%clk 0:01:39]}  Bb7 {[%clk 0:01:39]} 26. Bc4 {[%clk 0:01:33]}  Bc6 {[%clk 0:01:39]} 27. Bb5 {[%clk 0:01:26]}  Bb7 {[%clk 0:01:39]} 28. Rab1 {[%clk 0:01:27]}  Bc8 {[%clk 0:01:32]} 29. Qe2 {[%clk 0:01:22]}  Bf5 {[%clk 0:01:31]} 30. a5 {[%clk 0:01:19]}  Rd6 {[%clk 0:01:26]} 31. axb6 {[%clk 0:01:18]}  axb6 {[%clk 0:01:27]} 32. Ra1 {[%clk 0:01:16]}  Qe7 {[%clk 0:01:14]} 33. Ra3 {[%clk 0:01:11]}  Rfd8 {[%clk 0:01:12]} 34. g4 {[%clk 0:01:02]}  Bd7 {[%clk 0:01:02]} 35. Ra7 {[%clk 0:00:55]}  e4 {[%clk 0:00:48]} 36. Bf4 {[%clk 0:00:39]}  Re6 {[%clk 0:00:30]} 37. Rxd7 {[%clk 0:00:33]}  Rxd7 {[%clk 0:00:29]} 38. Bxd7 {[%clk 0:00:34]}  Qxd7 {[%clk 0:00:29]} 39. dxe4 {[%clk 0:00:34]}  Rxe4 {[%clk 0:00:27]} 40. Rxd7 {[%clk 0:00:31]}  Rxe2 {[%clk 0:00:28]} 41. Rb7 {[%clk 0:00:27]}  Re6 {[%clk 0:00:23]} 42. c4 {[%clk 0:00:26]}  Kg8 {[%clk 0:00:22]} 43. Bc7 {[%clk 0:00:21]}  Re4 {[%clk 0:00:22]} 44. Rxb6 {[%clk 0:00:21]}  Kh7 {[%clk 0:00:08]} 45. Rb7 {[%clk 0:00:21]}  Kg8 {[%clk 0:00:08]} 46. Bd6 {[%clk 0:00:14]}  Rxc4 {[%clk 0:00:08]} 47. Rc7 {[%clk 0:00:15]}  Rc1+ {[%clk 0:00:09]} 48. Kg2 {[%clk 0:00:15]}  c4 {[%clk 0:00:09]} 49. f4 {[%clk 0:00:13]}  c3 {[%clk 0:00:09]} 50. Be5 {[%clk 0:00:14]}  Bxe5 {[%clk 0:00:08]} 51. fxe5 {[%clk 0:00:15]}  c2 {[%clk 0:00:07]} 52. e6 {[%clk 0:00:15]}  Kf8 {[%clk 0:00:06]} 53. e7+ {[%clk 0:00:09]}  Ke8 {[%clk 0:00:07]} 54. Kh2 {[%clk 0:00:10]}  h5 {[%clk 0:00:03]} 55. gxh5 {[%clk 0:00:09]}  gxh5 {[%clk 0:00:04]} 56. h4 {[%clk 0:00:10]}  Kf7 {[%clk 0:00:03]} 57. Kg2 {[%clk 0:00:10]}  Ke8 {[%clk 0:00:04]} 58. Kh2 {[%clk 0:00:10]}  Kf7 {[%clk 0:00:05]} 59. Kg2 {[%clk 0:00:11]}  Ke8 {[%clk 0:00:05]} 60. Kh2 {[%clk 0:00:11]} 1/2-1/2


[Site "https://www.chess.com"]

[Event "Titled Tuesday Blitz April 18 Late 2023"]
[White "Pranav, V"]
[Black "Ashraf, Artin"]
[WhiteFideId "25060783"]
[BlackFideId "22514805"]
[WhiteElo "2500"]
[BlackElo "2188"]
[Result "0-1"]
[Round "11"]
[TimeControl "180+2"]
[Date "2023.04.18"]
[WhiteClock "0:00:02"]
[BlackClock "0:00:05"]

1. e4 {[%clk 0:03:00]}  c5 {[%clk 0:02:59]} 2. Nc3 {[%clk 0:02:59]}  d6 {[%clk 0:02:56]} 3. d4 {[%clk 0:03:00]}  cxd4 {[%clk 0:02:55]} 4. Qxd4 {[%clk 0:03:01]}  Nc6 {[%clk 0:02:55]} 5. Qd2 {[%clk 0:03:01]}  g6 {[%clk 0:02:55]} 6. b3 {[%clk 0:03:01]}  Bg7 {[%clk 0:02:45]} 7. Bb2 {[%clk 0:03:00]}  Nf6 {[%clk 0:02:44]} 8. O-O-O {[%clk 0:03:00]}  O-O {[%clk 0:02:44]} 9. f4 {[%clk 0:03:01]}  a6 {[%clk 0:02:41]} 10. Nf3 {[%clk 0:03:00]}  b5 {[%clk 0:02:40]} 11. Qe1 {[%clk 0:02:54]}  Qc7 {[%clk 0:02:36]} 12. e5 {[%clk 0:02:53]}  dxe5 {[%clk 0:02:31]} 13. fxe5 {[%clk 0:02:53]}  Ng4 {[%clk 0:02:31]} 14. Nd5 {[%clk 0:02:53]}  Qa7 {[%clk 0:02:30]} 15. Qh4 {[%clk 0:02:41]}  Nf2 {[%clk 0:02:10]} 16. Nd4 {[%clk 0:02:40]}  Nxd1 {[%clk 0:01:38]} 17. Nxc6 {[%clk 0:02:39]}  Qf2 {[%clk 0:01:33]} 18. Qd4 {[%clk 0:02:31]}  Qe1 {[%clk 0:01:07]} 19. Be2 {[%clk 0:01:44]}  Qxh1 {[%clk 0:00:53]} 20. Bxd1 {[%clk 0:01:43]}  Be6 {[%clk 0:00:49]} 21. Ndxe7+ {[%clk 0:01:26]}  Kh8 {[%clk 0:00:49]} 22. Bc3 {[%clk 0:01:22]}  Qxg2 {[%clk 0:00:40]} 23. Kb2 {[%clk 0:01:21]}  Qxh2 {[%clk 0:00:40]} 24. Bf3 {[%clk 0:01:17]}  h5 {[%clk 0:00:35]} 25. Qe4 {[%clk 0:01:10]}  Rac8 {[%clk 0:00:31]} 26. Nxc8 {[%clk 0:01:09]}  Rxc8 {[%clk 0:00:32]} 27. Qe3 {[%clk 0:01:06]}  Qg3 {[%clk 0:00:25]} 28. Qe4 {[%clk 0:00:48]}  h4 {[%clk 0:00:22]} 29. Be1 {[%clk 0:00:40]}  Qh2 {[%clk 0:00:12]} 30. Bc3 {[%clk 0:00:37]}  Rxc6 {[%clk 0:00:07]} 31. Qxc6 {[%clk 0:00:37]}  Bxe5 {[%clk 0:00:08]} 32. Qxa6 {[%clk 0:00:30]}  Bxc3+ {[%clk 0:00:06]} 33. Kxc3 {[%clk 0:00:30]}  Qg3 {[%clk 0:00:05]} 34. Qa8+ {[%clk 0:00:26]}  Kg7 {[%clk 0:00:05]} 35. Kb4 {[%clk 0:00:26]}  h3 {[%clk 0:00:04]} 36. Kxb5 {[%clk 0:00:26]}  h2 {[%clk 0:00:04]} 37. c4 {[%clk 0:00:27]}  Qg1 {[%clk 0:00:04]} 38. Qe4 {[%clk 0:00:25]}  Bf5 {[%clk 0:00:03]} 39. Qe5+ {[%clk 0:00:25]}  Kh7 {[%clk 0:00:03]} 40. Qd5 {[%clk 0:00:22]}  Be6 {[%clk 0:00:02]} 41. Qe4 {[%clk 0:00:22]}  Qg3 {[%clk 0:00:02]} 42. c5 {[%clk 0:00:19]}  Qb8+ {[%clk 0:00:03]} 43. Ka6 {[%clk 0:00:17]}  Bc8+ {[%clk 0:00:02]} 44. Ka5 {[%clk 0:00:17]}  Qa7+ {[%clk 0:00:03]} 45. Kb4 {[%clk 0:00:18]}  Qb8+ {[%clk 0:00:03]} 46. Kc3 {[%clk 0:00:17]}  Be6 {[%clk 0:00:04]} 47. Qh4+ {[%clk 0:00:17]}  Kg7 {[%clk 0:00:04]} 48. Qd4+ {[%clk 0:00:17]}  Kh7 {[%clk 0:00:04]} 49. c6 {[%clk 0:00:15]}  Qg3 {[%clk 0:00:05]} 50. Qd3 {[%clk 0:00:12]}  Bg4 {[%clk 0:00:05]} 51. Bd5 {[%clk 0:00:10]}  Qe5+ {[%clk 0:00:04]} 52. Qd4 {[%clk 0:00:10]}  Qe1+ {[%clk 0:00:05]} 53. Kb2 {[%clk 0:00:10]}  Be6 {[%clk 0:00:02]} 54. c7 {[%clk 0:00:07]}  h1=Q {[%clk 0:00:01]} 55. Bxh1 {[%clk 0:00:05]}  Qxh1 {[%clk 0:00:02]} 56. Qd8 {[%clk 0:00:04]}  Qh2+ {[%clk 0:00:03]} 57. Ka3 {[%clk 0:00:04]}  Qh3 {[%clk 0:00:03]} 58. Kb4 {[%clk 0:00:04]}  Qf5 {[%clk 0:00:04]} 59. Qh4+ {[%clk 0:00:02]}  Kg7 {[%clk 0:00:04]} 60. Qd4+ {[%clk 0:00:03]}  Kh7 {[%clk 0:00:04]} 61. Qh4+ {[%clk 0:00:03]}  Kg7 {[%clk 0:00:04]} 62. Qd8 {[%clk 0:00:03]}  g5 {[%clk 0:00:05]} 63. Qd4+ {[%clk 0:00:03]}  Kg6 {[%clk 0:00:05]} 64. Qc3 {[%clk 0:00:03]}  g4 {[%clk 0:00:05]} 65. a4 {[%clk 0:00:04]}  Qf4+ {[%clk 0:00:05]} 66. Ka3 {[%clk 0:00:04]}  g3 {[%clk 0:00:06]} 67. c8=Q {[%clk 0:00:05]}  Bxc8 {[%clk 0:00:06]} 68. Qxc8 {[%clk 0:00:05]}  Qd6+ {[%clk 0:00:06]} 69. Ka2 {[%clk 0:00:05]}  Qd2+ {[%clk 0:00:06]} 70. Ka3 {[%clk 0:00:06]}  g2 {[%clk 0:00:06]} 71. Qg8+ {[%clk 0:00:06]}  Kf6 {[%clk 0:00:07]} 72. Qh8+ {[%clk 0:00:07]}  Kf5 {[%clk 0:00:07]} 73. Qh5+ {[%clk 0:00:07]}  Ke4 {[%clk 0:00:07]} 74. Qg4+ {[%clk 0:00:07]}  Kd3 {[%clk 0:00:07]} 75. Qf3+ {[%clk 0:00:05]}  Kc2 {[%clk 0:00:07]} 76. Qe4+ {[%clk 0:00:06]}  Kc1 {[%clk 0:00:06]} 77. Qc6+ {[%clk 0:00:05]}  Qc2 {[%clk 0:00:05]} 78. Qh6+ {[%clk 0:00:04]}  Kb1 {[%clk 0:00:05]} 79. Qg7 {[%clk 0:00:02]}  Qc1+ {[%clk 0:00:04]} 80. Kb4 {[%clk 0:00:03]}  g1=Q {[%clk 0:00:05]} 81. Qh7+ {[%clk 0:00:02]}  Qc2 {[%clk 0:00:05]} 82. Qxf7 {[%clk 0:00:02]}  Qgc5# {[%clk 0:00:05]} 0-1


[Site "https://www.chess.com"]

[Event "Titled Tuesday Blitz April 18 Late 2023"]
[White "Kramnik, Vladimir"]
[Black "Makridis, Dimitrios"]
[WhiteFideId "4101588"]
[BlackFideId "25864475"]
[WhiteElo "2712"]
[BlackElo "2277"]
[Result "0-1"]
[Round "11"]
[TimeControl "180+2"]
[Date "2023.04.18"]
[WhiteClock "0:00:02"]
[BlackClock "0:00:06"]

1. e4 {[%clk 0:03:00]}  c5 {[%clk 0:02:47]} 2. Nf3 {[%clk 0:03:00]}  Nf6 {[%clk 0:02:43]} 3. e5 {[%clk 0:02:58]}  Nd5 {[%clk 0:02:43]} 4. Nc3 {[%clk 0:02:58]}  e6 {[%clk 0:02:44]} 5. Nxd5 {[%clk 0:02:53]}  exd5 {[%clk 0:02:44]} 6. d4 {[%clk 0:02:53]}  Nc6 {[%clk 0:02:45]} 7. c3 {[%clk 0:02:48]}  cxd4 {[%clk 0:02:44]} 8. Nxd4 {[%clk 0:02:44]}  d6 {[%clk 0:02:44]} 9. Bb5 {[%clk 0:02:43]}  Bd7 {[%clk 0:02:43]} 10. Nf3 {[%clk 0:02:34]}  dxe5 {[%clk 0:02:30]} 11. Qxd5 {[%clk 0:02:33]}  f6 {[%clk 0:02:28]} 12. Be3 {[%clk 0:02:30]}  Qc7 {[%clk 0:02:06]} 13. O-O {[%clk 0:02:10]}  O-O-O {[%clk 0:01:50]} 14. a4 {[%clk 0:02:07]}  a6 {[%clk 0:01:50]} 15. Qc4 {[%clk 0:01:47]}  axb5 {[%clk 0:01:41]} 16. axb5 {[%clk 0:01:47]}  Nb8 {[%clk 0:01:41]} 17. Qb3 {[%clk 0:01:41]}  Bc5 {[%clk 0:01:41]} 18. Ra4 {[%clk 0:01:37]}  Bxe3 {[%clk 0:01:21]} 19. fxe3 {[%clk 0:01:36]}  Qb6 {[%clk 0:01:15]} 20. Qc4+ {[%clk 0:01:34]}  Qc7 {[%clk 0:01:09]} 21. Qb3 {[%clk 0:01:13]}  Qb6 {[%clk 0:01:07]} 22. Rc4+ {[%clk 0:01:09]}  Nc6 {[%clk 0:01:03]} 23. Qa4 {[%clk 0:00:55]}  Kb8 {[%clk 0:00:59]} 24. bxc6 {[%clk 0:00:48]}  Bxc6 {[%clk 0:01:00]} 25. Rxc6 {[%clk 0:00:32]}  Qxc6 {[%clk 0:00:58]} 26. Qb4 {[%clk 0:00:28]}  Rd3 {[%clk 0:00:51]} 27. Ra1 {[%clk 0:00:27]}  Rhd8 {[%clk 0:00:50]} 28. Kf2 {[%clk 0:00:21]}  R8d6 {[%clk 0:00:23]} 29. Ra5 {[%clk 0:00:11]}  R3d5 {[%clk 0:00:16]} 30. Ra3 {[%clk 0:00:08]}  Qb6 {[%clk 0:00:16]} 31. Qa4 {[%clk 0:00:06]}  Qxb2+ {[%clk 0:00:07]} 32. Kg3 {[%clk 0:00:06]}  Qb6 {[%clk 0:00:04]} 33. Qa8+ {[%clk 0:00:04]}  Kc7 {[%clk 0:00:04]} 34. Qg8 {[%clk 0:00:04]}  Rd7 {[%clk 0:00:04]} 35. Ra8 {[%clk 0:00:03]}  Qd6 {[%clk 0:00:03]} 36. Rc8+ {[%clk 0:00:02]}  Kb6 {[%clk 0:00:03]} 37. e4 {[%clk 0:00:02]}  Rd3 {[%clk 0:00:03]} 38. Rf8 {[%clk 0:00:01]}  g6 {[%clk 0:00:03]} 39. Re8 {[%clk 0:00:01]}  f5 {[%clk 0:00:03]} 40. Re6 {[%clk 0:00:01]}  fxe4 {[%clk 0:00:04]} 41. Rxd6+ {[%clk 0:00:01]}  R7xd6 {[%clk 0:00:05]} 42. Kg4 {[%clk 0:00:02]}  exf3 {[%clk 0:00:05]} 43. gxf3 {[%clk 0:00:02]}  Rxc3 {[%clk 0:00:05]} 44. Qf8 {[%clk 0:00:03]}  Rd4+ {[%clk 0:00:05]} 45. Kg5 {[%clk 0:00:02]}  Rc5 {[%clk 0:00:06]} 46. Kh6 {[%clk 0:00:02]}  Rh4+ {[%clk 0:00:05]} 47. Kg7 {[%clk 0:00:02]}  Rf4 {[%clk 0:00:06]} 0-1


[Site "https://www.chess.com"]

[Event "Titled Tuesday Blitz April 18 Late 2023"]
[White "Hansen, Eric"]
[Black "Manukyan, Sargis A."]
[WhiteFideId "2606771"]
[BlackFideId "13303970"]
[WhiteElo "2561"]
[BlackElo "2187"]
[Result "0-1"]
[Round "11"]
[TimeControl "180+2"]
[Date "2023.04.18"]
[WhiteClock "0:00:01"]
[BlackClock "0:00:26"]

1. e4 {[%clk 0:02:41]}  c5 {[%clk 0:02:59]} 2. Nf3 {[%clk 0:02:40]}  d6 {[%clk 0:03:00]} 3. d4 {[%clk 0:02:39]}  cxd4 {[%clk 0:03:01]} 4. Nxd4 {[%clk 0:02:40]}  Nf6 {[%clk 0:03:01]} 5. Nc3 {[%clk 0:02:41]}  g6 {[%clk 0:03:02]} 6. Be2 {[%clk 0:02:39]}  Bg7 {[%clk 0:03:02]} 7. O-O {[%clk 0:02:40]}  O-O {[%clk 0:03:03]} 8. Re1 {[%clk 0:02:41]}  Nc6 {[%clk 0:03:04]} 9. Nb3 {[%clk 0:02:41]}  Be6 {[%clk 0:03:01]} 10. Bf1 {[%clk 0:02:42]}  b6 {[%clk 0:03:02]} 11. Nd5 {[%clk 0:02:41]}  a5 {[%clk 0:03:01]} 12. Bb5 {[%clk 0:02:34]}  Nb4 {[%clk 0:02:55]} 13. c4 {[%clk 0:02:29]}  Nfxd5 {[%clk 0:02:54]} 14. exd5 {[%clk 0:02:28]}  Bf5 {[%clk 0:02:54]} 15. Re2 {[%clk 0:02:21]}  a4 {[%clk 0:02:42]} 16. Nd4 {[%clk 0:02:21]}  a3 {[%clk 0:02:20]} 17. Nxf5 {[%clk 0:02:10]}  gxf5 {[%clk 0:02:14]} 18. Qb3 {[%clk 0:01:48]}  axb2 {[%clk 0:02:00]} 19. Bxb2 {[%clk 0:01:34]}  Bxb2 {[%clk 0:01:59]} 20. Qxb2 {[%clk 0:01:29]}  Nd3 {[%clk 0:01:55]} 21. Qd4 {[%clk 0:01:19]}  Nc5 {[%clk 0:01:50]} 22. Rae1 {[%clk 0:01:17]}  e5 {[%clk 0:01:47]} 23. dxe6 {[%clk 0:01:17]}  fxe6 {[%clk 0:01:47]} 24. Rd1 {[%clk 0:01:17]}  Kf7 {[%clk 0:01:15]} 25. g3 {[%clk 0:01:06]}  Qf6 {[%clk 0:01:07]} 26. Qe3 {[%clk 0:00:57]}  Rad8 {[%clk 0:01:05]} 27. Red2 {[%clk 0:00:57]}  e5 {[%clk 0:01:04]} 28. Rd5 {[%clk 0:00:52]}  f4 {[%clk 0:01:01]} 29. Qe2 {[%clk 0:00:48]}  Ke7 {[%clk 0:01:01]} 30. Bc6 {[%clk 0:00:46]}  fxg3 {[%clk 0:01:00]} 31. hxg3 {[%clk 0:00:45]}  h5 {[%clk 0:01:01]} 32. R5d2 {[%clk 0:00:28]}  h4 {[%clk 0:01:01]} 33. Bg2 {[%clk 0:00:24]}  Rg8 {[%clk 0:00:58]} 34. Qe3 {[%clk 0:00:22]}  Rg6 {[%clk 0:00:55]} 35. a4 {[%clk 0:00:14]}  hxg3 {[%clk 0:00:56]} 36. fxg3 {[%clk 0:00:14]}  Qg7 {[%clk 0:00:56]} 37. a5 {[%clk 0:00:10]}  Rxg3 {[%clk 0:00:57]} 38. Qf2 {[%clk 0:00:10]}  bxa5 {[%clk 0:00:54]} 39. Rb2 {[%clk 0:00:07]}  Rg8 {[%clk 0:00:52]} 40. Qe2 {[%clk 0:00:04]}  Rxg2+ {[%clk 0:00:49]} 41. Qxg2 {[%clk 0:00:05]}  Qh7 {[%clk 0:00:47]} 42. Rf1 {[%clk 0:00:06]}  Rxg2+ {[%clk 0:00:47]} 43. Rxg2 {[%clk 0:00:07]}  a4 {[%clk 0:00:47]} 44. Rf3 {[%clk 0:00:06]}  Qh6 {[%clk 0:00:43]} 45. Rfg3 {[%clk 0:00:06]}  a3 {[%clk 0:00:42]} 46. Rg7+ {[%clk 0:00:05]}  Kf6 {[%clk 0:00:42]} 47. Ra7 {[%clk 0:00:05]}  Qc1+ {[%clk 0:00:41]} 48. Kh2 {[%clk 0:00:05]}  Qf4+ {[%clk 0:00:41]} 49. Kg1 {[%clk 0:00:05]}  Qxc4 {[%clk 0:00:34]} 50. Rf2+ {[%clk 0:00:04]}  Ke6 {[%clk 0:00:34]} 51. Ra8 {[%clk 0:00:02]}  Nd3 {[%clk 0:00:31]} 52. Rg2 {[%clk 0:00:01]}  Nb2 {[%clk 0:00:26]} 0-1


[Site "https://www.chess.com"]